fUST/lending_fUST_20250810
["ID","MTS","AMOUNT","RATE_DAILY","PERIOD"]
[378249969,1754797851354,-460.0,0.00022405,2]
[378249970,1754797851363,-460.0,0.00022405,2]
[378249971,1754797851373,-460.0,0.00022405,2]
[378249975,1754797851518,-460.0,0.00022405,2]
[378249978,1754797851529,-332.69,0.00022405,2]
[378249979,1754797851539,-599.282201,0.00022405,7]
[378249981,1754797851549,-1761.24,0.00022405,2]
[378249984,1754797851559,-599.282201,0.00022405,7]
[378249985,1754797851570,-201.64324224,0.00022405,2]
[378249988,1754797851580,-460.0,0.00022405,2]
[378249990,1754797851589,-516.957406,0.00022405,7]
[378249991,1754797851599,-516.957406,0.00022405,7]
[378249994,1754797851612,-151.0,0.00022405,7]
[378249995,1754797851621,-627.15,0.00022405,2]
[378249997,1754797851631,-370.59555,0.00022405,7]
[378249999,1754797851640,-370.59555,0.00022405,7]
[378250002,1754797851651,-1332.431135,0.00022405,7]
[378250003,1754797851661,-594.92056824,0.00022405,2]
[378250005,1754797851671,-1332.431135,0.00022405,7]
[378250007,1754797851684,-218.478689,0.00022405,7]
[378250010,1754797851695,-151.93929,0.00022406,7]
[378250011,1754797851705,-238.790237,0.00022406,7]
[378250013,1754797851714,-238.790237,0.00022406,7]
[378250015,1754797851724,-211.648519,0.00022406,7]
[378250017,1754797851734,-211.648519,0.00022406,7]
[378250020,1754797851744,-151.0,0.00022406,7]
[378250021,1754797851753,-614.275807,0.00022406,7]
[378250023,1754797851763,-151.0,0.00022406,7]
[378250025,1754797851773,-460.0,0.00022406,2]
[378250027,1754797851782,-151.0,0.00022406,7]
[378250029,1754797851791,-151.0,0.00022406,7]
[378250031,1754797851800,-460.0,0.00022406,2]
[378250033,1754797851811,-460.0,0.00022406,2]
[378250035,1754797851821,-151.0,0.00022406,7]
[378250037,1754797851830,-151.0,0.00022406,7]
[378250039,1754797851840,-255.435317,0.00022406,7]
[378250041,1754797851849,-255.435317,0.00022406,7]
[378250043,1754797851859,-151.0,0.00022406,7]
[378250045,1754797851868,-151.0,0.00022406,7]
[378250047,1754797851878,-151.0,0.00022406,7]
[378250049,1754797851888,-599.282201,0.00022406,7]
[378250051,1754797851897,-599.282201,0.00022406,7]
[378250053,1754797851907,-1332.431135,0.00022406,7]
[378250055,1754797851917,-1332.431135,0.00022406,7]
[378250057,1754797851926,-218.478689,0.00022406,7]
[378250059,1754797851936,-500.0,0.00022418,2]
[378250062,1754797851945,-151.0,0.00022464,7]
[378250064,1754797851956,-234.434904,0.00022464,7]
[378250065,1754797851965,-234.434904,0.00022464,7]
[378250067,1754797851975,-268.757067,0.00022464,7]
[378250069,1754797851995,-268.757067,0.00022464,7]
[378250071,1754797852015,-460.0,0.00022476,2]
[378250073,1754797852034,-460.0,0.00022476,2]
[378250075,1754797852057,-460.0,0.00022476,2]
[378250077,1754797852077,-460.0,0.00022476,2]
[378250079,1754797852100,-460.0,0.00022476,2]
[378250081,1754797852121,-460.0,0.00022476,2]
[378250083,1754797852142,-460.0,0.00022476,2]
[378250085,1754797852164,-460.0,0.00022476,2]
[378250087,1754797852185,-460.0,0.00022476,2]
[378250089,1754797852206,-460.0,0.00022476,2]
[378250091,1754797852228,-460.0,0.00022476,2]
[378250093,1754797852249,-460.0,0.00022476,2]
[378250095,1754797852272,-460.0,0.00022476,2]
[378250097,1754797852293,-460.0,0.00022476,2]
[378250099,1754797852313,-460.0,0.00022476,2]
[378250101,1754797852335,-516.957406,0.00022476,7]
[378250103,1754797852354,-516.957406,0.00022476,7]
[378250105,1754797852376,-460.0,0.00022476,2]
[378250107,1754797852398,-460.0,0.00022476,2]
[378250109,1754797852419,-460.0,0.00022476,2]
[378250111,1754797852437,-460.0,0.00022476,2]
[378250113,1754797852447,-460.0,0.00022476,2]
[378250115,1754797852457,-370.59555,0.00022476,7]
[378250117,1754797852466,-460.0,0.00022476,2]
[378250119,1754797852475,-370.59555,0.00022476,7]
[378250121,1754797852484,-545.37,0.00022476,2]
[378250123,1754797852494,-468.72,0.00022476,2]
[378250125,1754797852503,-460.0,0.00022476,2]
[378250127,1754797852513,-460.0,0.00022476,2]
[378250129,1754797852522,-218.478689,0.00022476,7]
[378250131,1754797852531,-151.0,0.00022495,7]
[378250133,1754797852540,-192.481277,0.00022495,7]
[378250135,1754797852550,-250.036184,0.00022495,7]
[378250137,1754797852560,-250.036184,0.00022495,7]
[378250139,1754797852570,-152.683373,0.00022495,7]
[378250141,1754797852579,-151.0,0.00022495,7]
[378250143,1754797852588,-151.0,0.00022495,7]
[378250145,1754797852597,-460.0,0.00022496,2]
[378250147,1754797852610,-460.0,0.00022496,2]
[378250149,1754797852619,-460.0,0.00022496,2]
[378250151,1754797852628,-460.0,0.00022496,2]
[378250153,1754797852637,-460.0,0.00022496,2]
[378250155,1754797852647,-460.0,0.00022496,2]
[378250157,1754797852656,-268.433747,0.00022496,7]
[378250159,1754797852665,-268.433747,0.00022496,7]
[378250161,1754797852674,-151.0,0.000225,2]
[378250163,1754797852684,-168.0,0.00022518,2]
[378250165,1754797852693,-151.0,0.00022527,7]
[378250167,1754797852702,-151.0,0.00022527,7]
[378250169,1754797852711,-460.0,0.00022527,2]
[378250171,1754797852719,-460.0,0.00022527,2]
[378250173,1754797852729,-516.957406,0.00022527,7]
[378250175,1754797852738,-516.957406,0.00022527,7]
[378250177,1754797852747,-370.59555,0.00022527,7]
[378250179,1754797852755,-370.59555,0.00022527,7]
[378250181,1754797852764,-1332.431135,0.00022527,7]
[378250183,1754797852774,-1332.431126,0.00022527,7]
[378250185,1754797852783,-151.0,0.00022579,7]
[378250187,1754797852792,-151.0,0.00022579,7]
[378250188,1754797852801,-255.435317,0.00022579,7]
[378250191,1754797852810,-255.435317,0.00022579,7]
[378250192,1754797852820,-599.282201,0.00022579,7]
[378250194,1754797852829,-599.282201,0.00022579,7]
[378250196,1754797852839,-200.0,0.00022586,15]
[378250198,1754797852849,-300.0,0.00022586,15]
[378250200,1754797852858,-160.0,0.00022594,2]
[378250202,1754797852867,-168.0,0.00022597,2]
[378250204,1754797852876,-460.0,0.00022608,2]
[378250206,1754797852886,-460.0,0.00022608,2]
[378250208,1754797852895,-460.0,0.00022608,2]
[378250210,1754797852904,-783.73,0.00022608,2]
[378250212,1754797852912,-460.0,0.00022608,2]
[378250214,1754797852922,-460.0,0.00022608,2]
[378250216,1754797852931,-460.0,0.00022608,2]
[378250218,1754797852940,-1545.89,0.00022608,2]
[378250220,1754797852949,-904.25,0.00022608,2]
[378250222,1754797852958,-460.0,0.00022608,2]
[378250224,1754797852967,-460.0,0.00022608,2]
[378250225,1754797852977,-460.0,0.00022608,2]
[378250226,1754797852986,-460.0,0.00022608,2]
[378250227,1754797852996,-460.0,0.00022608,2]
[378250228,1754797853005,-460.0,0.00022608,2]
[378250229,1754797853014,-460.0,0.00022608,2]
[378250230,1754797853023,-460.0,0.00022608,2]
[378250231,1754797853032,-460.0,0.00022608,2]
[378250232,1754797853041,-550.04,0.00022608,2]
[378250233,1754797853051,-891.45,0.00022608,2]
[378250234,1754797853060,-460.0,0.00022608,2]
[378250235,1754797853070,-460.0,0.00022608,2]
[378250236,1754797853080,-460.0,0.00022608,2]
[378250237,1754797853089,-168.0,0.00022614,2]
[378250238,1754797853098,-238.790237,0.00022616,7]
[378250239,1754797853107,-238.790237,0.00022616,7]
[378250240,1754797853116,-151.0,0.00022616,7]
[378250241,1754797853125,-151.0,0.00022616,7]
[378250242,1754797853134,-614.275807,0.00022616,7]
[378250243,1754797853143,-151.0,0.00022616,7]
[378250244,1754797853152,-268.757067,0.00022616,7]
[378250245,1754797853161,-268.757067,0.00022616,7]
[378250246,1754797853170,-151.0,0.00022616,7]
[378250247,1754797853179,-159.347231,0.00022616,7]
[378250248,1754797853188,-516.957406,0.00022616,7]
[378250249,1754797853198,-516.957406,0.00022616,7]
[378250250,1754797853207,-370.59555,0.00022616,7]
[378250251,1754797853216,-370.59555,0.00022616,7]
[378250252,1754797853225,-218.478689,0.00022616,7]
[378250253,1754797853234,-460.0,0.00022647,2]
[378250254,1754797853243,-460.0,0.00022647,2]
[378250255,1754797853252,-460.0,0.00022647,2]
[378250256,1754797853261,-477.78,0.00022647,2]
[378250257,1754797853271,-460.0,0.00022647,2]
[378250258,1754797853280,-460.0,0.00022648,2]
[378250259,1754797853289,-599.282201,0.00022648,7]
[378250260,1754797853298,-599.282194,0.00022648,7]
[378250261,1754797853308,-460.0,0.00022648,2]
[378250262,1754797853317,-1010.69,0.00022648,2]
[378250263,1754797853327,-460.0,0.00022648,2]
[378250264,1754797853335,-460.0,0.00022648,2]
[378250265,1754797853345,-557.19,0.00022648,2]
[378250266,1754797853355,-504.48071687,0.00022677,2]
[378250267,1754797853364,-151.0,0.00022679,7]
[378250268,1754797853374,-151.0,0.00022679,7]
[378250269,1754797853383,-390.19925988,0.00022679,2]
[378250270,1754797853392,-460.0,0.00022679,2]
[378250271,1754797853401,-460.0,0.00022679,2]
[378250272,1754797853411,-460.0,0.00022679,2]
[378250273,1754797853420,-151.0,0.00022679,7]
[378250274,1754797853430,-151.0,0.00022679,7]
[378250275,1754797853439,-255.435317,0.00022679,7]
[378250276,1754797853449,-255.435317,0.00022679,7]
[378250277,1754797853458,-460.0,0.00022679,2]
[378250278,1754797853468,-151.0,0.00022679,7]
[378250279,1754797853478,-460.0,0.00022679,2]
[378250280,1754797853487,-460.0,0.00022679,2]
[378250281,1754797853497,-460.0,0.00022679,2]
[378250282,1754797853506,-460.0,0.00022679,2]
[378250283,1754797853515,-167.39355815,0.00022679,2]
[378250284,1754797853524,-460.0,0.00022679,2]
[378250285,1754797853533,-460.0,0.00022679,2]
[378250286,1754797853543,-460.0,0.00022679,2]
[378250287,1754797853552,-460.0,0.00022679,2]
[378250288,1754797853561,-1761.24,0.00022679,2]
[378250289,1754797853571,-460.0,0.00022679,2]
[378250290,1754797853580,-627.15,0.00022679,2]
[378250291,1754797853590,-211.648519,0.0002268,7]
[378250293,1754797853599,-211.648519,0.0002268,7]
[378250294,1754797853611,-234.434904,0.0002268,7]
[378250295,1754797853621,-234.434904,0.0002268,7]
[378250296,1754797853630,-460.0,0.0002268,2]
[378250297,1754797853639,-151.0,0.0002268,7]
[378250298,1754797853648,-250.036184,0.0002268,7]
[378250299,1754797853657,-250.036184,0.0002268,7]
[378250300,1754797853666,-460.0,0.0002268,2]
[378250301,1754797853676,-460.0,0.0002268,2]
[378250302,1754797853687,-268.433747,0.0002268,7]
[378250303,1754797853697,-268.433747,0.0002268,7]
[378250304,1754797853706,-516.957406,0.0002268,7]
[378250305,1754797853715,-516.957406,0.0002268,7]
[378250306,1754797853725,-370.59555,0.0002268,7]
[378250307,1754797853734,-370.59555,0.0002268,7]
[378250308,1754797853743,-160.0,0.00022711,2]
[378250309,1754797853753,-151.0,0.00022736,7]
[378250310,1754797853762,-268.757067,0.0002275,7]
[378250311,1754797853772,-268.757067,0.0002275,7]
[378250312,1754797853782,-151.0,0.0002275,7]
[378250313,1754797853791,-151.0,0.0002275,7]
[378250314,1754797853801,-151.0,0.0002275,7]
[378250315,1754797853810,-460.0,0.0002275,2]
[378250316,1754797853819,-460.0,0.0002275,2]
[378250317,1754797853828,-460.0,0.0002275,2]
[378250318,1754797853837,-460.0,0.0002275,2]
[378250319,1754797853847,-460.0,0.0002275,2]
[378250320,1754797853856,-460.0,0.0002275,2]
[378250321,1754797853866,-460.0,0.0002275,2]
[378250322,1754797853875,-460.0,0.0002275,2]
[378250323,1754797853885,-460.0,0.0002275,2]
[378250324,1754797853895,-460.0,0.0002275,2]
[378250325,1754797853904,-454.06006495,0.0002275,2]
[378250326,1754797853913,-460.0,0.0002275,2]
[378250327,1754797853922,-460.0,0.0002275,2]
[378250328,1754797853931,-460.0,0.0002275,2]
[378250329,1754797853940,-579.90927,0.0002275,2]
[378250330,1754797853949,-460.0,0.0002275,2]
[378250331,1754797853959,-460.0,0.0002275,2]
[378250332,1754797853969,-460.0,0.0002275,2]
[378250334,1754797853978,-460.0,0.0002275,2]
[378250336,1754797853988,-460.0,0.0002275,2]
[378250338,1754797854000,-545.37,0.0002275,2]
[378250340,1754797854009,-468.72,0.0002275,2]
[378250341,1754797854019,-460.0,0.0002275,2]
[378250343,1754797854028,-460.0,0.0002275,2]
[378250345,1754797854038,-182.764,0.00022764,2]
[378250346,1754797854047,-460.0,0.0002277,2]
[378250347,1754797854058,-460.0,0.0002277,2]
[378250349,1754797854067,-296.35029881,0.0002277,2]
[378250351,1754797854077,-460.0,0.0002277,2]
[378250353,1754797854086,-168.0,0.00022771,2]
[378250355,1754797854096,-168.0,0.00022789,2]
[378250356,1754797854105,-151.0,0.00022801,7]
[378250357,1754797854114,-153.132157,0.00022801,7]
[378250358,1754797854123,-255.435317,0.00022801,7]
[378250359,1754797854133,-255.435317,0.00022801,7]
[378250360,1754797854142,-460.0,0.00022801,2]
[378250361,1754797854152,-460.0,0.00022801,2]
[378250362,1754797854161,-234.434904,0.00022815,7]
[378250363,1754797854170,-234.434904,0.00022815,7]
[378250364,1754797854179,-516.957406,0.00022815,7]
[378250366,1754797854188,-516.957406,0.00022815,7]
[378250368,1754797854197,-370.59555,0.00022815,7]
[378250370,1754797854207,-370.59555,0.00022815,7]
[378250372,1754797854216,-151.0,0.0002283,2]
[378250374,1754797854225,-151.60781116,0.0002283,2]
[378250376,1754797854234,-152.11548266,0.0002283,2]
[378250378,1754797854243,-726.31629035,0.0002283,2]
[378250380,1754797854252,-500.0,0.0002283,2]
[378250382,1754797854261,-151.0,0.0002283,2]
[378250383,1754797854270,-152.84969599,0.0002283,2]
[378250385,1754797854280,-185.41196012,0.0002283,2]
[378250387,1754797854290,-168.0,0.00022871,2]
[378250389,1754797854299,-200.67948028,0.00022872,2]
[378250391,1754797854308,-238.790237,0.00022873,7]
[378250393,1754797854317,-238.790237,0.00022873,7]
[378250396,1754797854328,-151.0,0.00022873,7]
[378250397,1754797854337,-614.275807,0.00022873,7]
[378250399,1754797854346,-258.167517,0.00022873,7]
[378250401,1754797854355,-461.62346162,0.00022873,7]
[378250404,1754797854365,-12668.57659669,0.00022873,7]
[378250406,1754797854375,-460.0,0.00022882,2]
[378250408,1754797854384,-460.0,0.00022882,2]
[378250409,1754797854394,-460.0,0.00022882,2]
[378250411,1754797854403,-783.73,0.00022882,2]
[378250413,1754797854412,-460.0,0.00022882,2]
[378250415,1754797854422,-460.0,0.00022882,2]
[378250417,1754797854431,-460.0,0.00022882,2]
[378250419,1754797854440,-1545.89,0.00022882,2]
[378250421,1754797854449,-904.25,0.00022882,2]
[378250423,1754797854459,-460.0,0.00022882,2]
[378250425,1754797854468,-460.0,0.00022882,2]
[378250427,1754797854478,-460.0,0.00022882,2]
[378250429,1754797854488,-460.0,0.00022882,2]
[378250431,1754797854497,-460.0,0.00022882,2]
[378250433,1754797854506,-460.0,0.00022882,2]
[378250435,1754797854515,-460.0,0.00022882,2]
[378250437,1754797854524,-460.0,0.00022882,2]
[378250439,1754797854533,-460.0,0.00022882,2]
[378250441,1754797854543,-550.04,0.00022882,2]
[378250443,1754797854553,-891.45,0.00022882,2]
[378250445,1754797854562,-460.0,0.00022882,2]
[378250447,1754797854572,-460.0,0.00022882,2]
[378250449,1754797854582,-460.0,0.00022882,2]
[378250451,1754797854592,-151.0,0.00022887,7]
[378250453,1754797854601,-151.0,0.00022887,7]
[378250455,1754797854614,-268.757067,0.0002289,7]
[378250457,1754797854624,-268.757067,0.0002289,7]
[378250459,1754797854633,-151.0,0.00022895,7]
[378250461,1754797854642,-234.434904,0.00022895,7]
[378250463,1754797854653,-234.434904,0.00022895,7]
[378250465,1754797854662,-268.757067,0.00022895,7]
[378250467,1754797854671,-268.757067,0.00022895,7]
[378250469,1754797854682,-151.0,0.00022895,7]
[378250471,1754797854691,-151.0,0.00022895,7]
[378250473,1754797854699,-268.433747,0.00022895,7]
[378250475,1754797854708,-268.433747,0.00022895,7]
[378250477,1754797854717,-238.790237,0.00022896,7]
[378250479,1754797854726,-238.790237,0.00022896,7]
[378250481,1754797854736,-211.648519,0.00022896,7]
[378250482,1754797854745,-211.648519,0.00022896,7]
[378250484,1754797854754,-151.0,0.00022896,7]
[378250486,1754797854763,-614.275807,0.00022896,7]
[378250488,1754797854773,-296.258058,0.00022897,7]
[378250490,1754797854782,-296.258058,0.00022897,7]
[378250504,1754797854906,-268.572851,0.00022897,7]
[378250505,1754797854916,-268.572851,0.00022897,7]
[378250506,1754797854926,-151.0,0.00022897,7]
[378250507,1754797854935,-238.790237,0.00022897,7]
[378250508,1754797854944,-238.790237,0.00022897,7]
[378250509,1754797854954,-151.0,0.00022897,7]
[378250510,1754797854963,-211.648519,0.00022897,7]
[378250511,1754797854973,-211.648519,0.00022897,7]
[378250512,1754797854982,-151.0,0.00022897,7]
[378250513,1754797854991,-234.434904,0.00022897,7]
[378250514,1754797855001,-234.434904,0.00022897,7]
[378250515,1754797855010,-614.275807,0.00022897,7]
[378250516,1754797855020,-152.8385055,0.00022897,7]
[378250517,1754797855029,-202.43496566,0.00022897,7]
[378250518,1754797855038,-151.0,0.00022897,7]
[378250519,1754797855047,-151.0,0.00022897,7]
[378250520,1754797855057,-268.757067,0.00022897,7]
[378250521,1754797855066,-268.757067,0.00022897,7]
[378250522,1754797855075,-250.036184,0.00022897,7]
[378250523,1754797855085,-250.036184,0.00022897,7]
[378250524,1754797855094,-151.0,0.00022897,7]
[378250525,1754797855103,-268.08869,0.00022897,7]
[378250526,1754797855112,-255.435317,0.00022897,7]
[378250527,1754797855122,-255.435317,0.00022897,7]
[378250528,1754797855131,-151.0,0.00022897,7]
[378250529,1754797855140,-516.957406,0.00022897,7]
[378250530,1754797855149,-516.957406,0.00022897,7]
[378250531,1754797855158,-370.59555,0.00022897,7]
[378250532,1754797855167,-370.59555,0.00022897,7]
[378250533,1754797855177,-151.0,0.000229,7]
[378250534,1754797855186,-151.0,0.000229,7]
[378250535,1754797855195,-666.341181,0.000229,7]
[378250536,1754797855205,-666.341181,0.000229,7]
[378250537,1754797855214,-151.0,0.000229,7]
[378250538,1754797855224,-151.0,0.000229,7]
[378250539,1754797855233,-268.433747,0.000229,7]
[378250540,1754797855243,-268.433747,0.000229,7]
[378250541,1754797855253,-168.0,0.00022903,2]
[378250542,1754797855262,-460.0,0.00022921,2]
[378250543,1754797855271,-460.0,0.00022921,2]
[378250544,1754797855281,-460.0,0.00022921,2]
[378250545,1754797855291,-477.78,0.00022921,2]
[378250546,1754797855301,-460.0,0.00022921,2]
[378250547,1754797855310,-460.0,0.00022922,2]
[378250548,1754797855319,-460.0,0.00022922,2]
[378250549,1754797855329,-1010.69,0.00022922,2]
[378250550,1754797855338,-460.0,0.00022922,2]
[378250551,1754797855347,-460.0,0.00022922,2]
[378250552,1754797855356,-557.19,0.00022922,2]
[378250553,1754797855365,-268.572851,0.00022953,7]
[378250554,1754797855375,-268.572851,0.00022953,7]
[378250555,1754797855384,-211.648519,0.00022953,7]
[378250556,1754797855393,-211.648519,0.00022953,7]
[378250557,1754797855404,-151.784643,0.00022953,7]
[378250558,1754797855418,-460.0,0.00022953,2]
[378250559,1754797855427,-151.0,0.00022953,7]
[378250560,1754797855436,-151.0,0.00022953,7]
[378250561,1754797855446,-693.16442,0.00022953,7]
[378250562,1754797855456,-693.16442,0.00022953,7]
[378250563,1754797855466,-250.036184,0.00022953,7]
[378250564,1754797855476,-250.036184,0.00022953,7]
[378250565,1754797855485,-460.0,0.00022953,2]
[378250566,1754797855495,-460.0,0.00022953,2]
[378250567,1754797855505,-460.0,0.00022953,2]
[378250568,1754797855515,-460.0,0.00022953,2]
[378250569,1754797855524,-460.0,0.00022953,2]
[378250570,1754797855533,-255.435317,0.00022953,7]
[378250571,1754797855543,-255.435317,0.00022953,7]
[378250572,1754797855552,-460.0,0.00022953,2]
[378250573,1754797855561,-460.0,0.00022953,2]
[378250574,1754797855570,-460.0,0.00022953,2]
[378250575,1754797855580,-460.0,0.00022953,2]
[378250576,1754797855589,-460.0,0.00022953,2]
[378250577,1754797855598,-460.0,0.00022953,2]
[378250578,1754797855610,-460.0,0.00022953,2]
[378250579,1754797855620,-477.00297683,0.00022953,2]
[378250580,1754797855629,-460.0,0.00022953,2]
[378250581,1754797855639,-1761.24,0.00022953,2]
[378250582,1754797855648,-460.0,0.00022953,2]
[378250583,1754797855658,-516.957406,0.00022953,7]
[378250584,1754797855667,-516.957416,0.00022953,7]
[378250585,1754797855677,-627.15,0.00022953,2]
[378250586,1754797855689,-370.59555,0.00022953,7]
[378250587,1754797855699,-370.595556,0.00022953,7]
[378250588,1754797855710,-1000.0,0.00022965,2]
[378250589,1754797855722,-1157.8663,0.00022967,2]
[378250590,1754797855735,-151.0,0.00022972,7]
[378250591,1754797855745,-268.433747,0.00022972,7]
[378250592,1754797855755,-268.433747,0.00022972,7]
[378250594,1754797855764,-250.0,0.00022972,2]
[378250595,1754797855774,-500.0,0.00022973,2]
[378250596,1754797855783,-500.0,0.00022973,2]
[378250597,1754797855793,-506.09161116,0.00022973,2]
[378250598,1754797855802,-500.0,0.00022973,2]
[378250599,1754797855811,-500.0,0.00022973,2]
[378250600,1754797855821,-500.0,0.00022973,2]
[378250601,1754797855830,-500.0,0.00022973,2]
[378250602,1754797855839,-211.28046456,0.00022973,2]
[378250603,1754797855848,-504.57878206,0.00022973,2]
[378250604,1754797855857,-247.19820077,0.00022973,2]
[378250605,1754797855867,-562.97348677,0.00022973,2]
[378250606,1754797855876,-500.0,0.00022973,2]
[378250607,1754797855885,-500.0,0.00022973,2]
[378250608,1754797855894,-505.28293452,0.00022973,2]
[378250609,1754797855903,-501.12569711,0.00022973,2]
[378250611,1754797855913,-500.8171718,0.00022973,2]
[378250613,1754797855922,-506.02925898,0.00022973,2]
[378250615,1754797855931,-500.0,0.00022973,2]
[378250617,1754797855940,-500.0,0.00022973,2]
[378250619,1754797855949,-500.0,0.00022973,2]
[378250621,1754797855958,-500.33563469,0.00022973,2]
[378250623,1754797855968,-500.68347371,0.00022973,2]
[378250625,1754797855977,-504.87843926,0.00022973,2]
[378250627,1754797855986,-500.0,0.00022973,2]
[378250629,1754797855995,-893.41515529,0.00022973,2]
[378250631,1754797856004,-500.0,0.00022973,2]
[378250633,1754797856012,-511.82032206,0.00022973,2]
[378250635,1754797856022,-500.0,0.00022973,2]
[378250637,1754797856031,-151.0,0.00022973,7]
[378250639,1754797856040,-296.258058,0.00022973,7]
[378250641,1754797856049,-296.258058,0.00022973,7]
[378250643,1754797856059,-752.414624,0.00022973,7]
[378250645,1754797856069,-752.414624,0.00022973,7]
[378250646,1754797856079,-238.068393,0.00022973,7]
[378250648,1754797856088,-151.0,0.00022973,7]
[378250650,1754797856097,-238.790237,0.00022973,7]
[378250652,1754797856107,-238.790237,0.00022973,7]
[378250654,1754797856116,-234.434904,0.00022973,7]
[378250656,1754797856126,-151.0,0.00022973,7]
[378250657,1754797856135,-234.434904,0.00022973,7]
[378250658,1754797856145,-234.434904,0.00022973,7]
[378250659,1754797856154,-234.434904,0.00022973,7]
[378250660,1754797856163,-614.275807,0.00022973,7]
[378250661,1754797856172,-151.0,0.00022973,2]
[378250662,1754797856181,-151.0,0.00022973,2]
[378250663,1754797856190,-275.48523855,0.00022973,2]
[378250664,1754797856200,-153.00541253,0.00022973,2]
[378250665,1754797856210,-151.0,0.00022973,2]
[378250667,1754797856219,-151.0,0.00022973,2]
[378250669,1754797856229,-154.09733854,0.00022973,2]
[378250671,1754797856239,-151.0,0.00022973,7]
[378250673,1754797856249,-151.0,0.00022973,7]
[378250675,1754797856259,-151.0,0.00022973,7]
[378250677,1754797856268,-151.0,0.00022973,7]
[378250679,1754797856278,-268.757067,0.00022973,7]
[378250681,1754797856287,-268.757067,0.00022973,7]
[378250683,1754797856296,-268.757067,0.00022973,7]
[378250684,1754797856306,-268.757075,0.00022973,7]
[378250686,1754797856317,-693.16442,0.00022973,7]
[378250689,1754797856327,-693.16442,0.00022973,7]
[378250690,1754797856337,-250.036184,0.00022973,7]
[378250693,1754797856347,-250.036184,0.00022973,7]
[378250694,1754797856355,-250.036184,0.00022973,7]
[378250696,1754797856365,-250.036184,0.00022973,7]
[378250698,1754797856374,-151.0,0.00022973,7]
[378250700,1754797856383,-255.435317,0.00022973,7]
[378250702,1754797856393,-255.435317,0.00022973,7]
[378250704,1754797856403,-255.435317,0.00022973,7]
[378250706,1754797856413,-255.435317,0.00022973,7]
[378250708,1754797856422,-268.433747,0.00022973,7]
[378250710,1754797856432,-268.433747,0.00022973,7]
[378250713,1754797856441,-151.0,0.00022985,7]
[378250714,1754797856451,-151.0,0.00022985,7]
[378250717,1754797856460,-151.0,0.00022985,7]
[378250719,1754797856469,-666.341181,0.00022985,7]
[378250721,1754797856479,-666.341181,0.00022985,7]
[378250723,1754797856488,-268.572851,0.00022985,7]
[378250724,1754797856498,-268.572851,0.00022985,7]
[378250726,1754797856508,-151.0,0.00022985,7]
[378250728,1754797856517,-151.0,0.00022985,7]
[378250731,1754797856526,-211.648519,0.00022985,7]
[378250733,1754797856535,-211.648519,0.00022985,7]
[378250734,1754797856544,-12668.57659669,0.00022989,2]
[378250736,1754797856553,-231.96268195,0.00022989,2]
[378250738,1754797856562,-461.62346162,0.00022989,2]
[378250740,1754797856571,-843.0869304,0.00022989,2]
[378250742,1754797856580,-216.64838636,0.00022989,2]
[378250744,1754797856590,-160.0,0.00022989,2]